bitfinex/quotes_BTCUSD_20240826
["timestamp","ask_amount","ask_price","bid_price","bid_amount"]
[1724665743750,1.61399309,63784.0,63783.0,0.000824]
[1724665743959,1.30043509,63784.0,63783.0,0.000824]
[1724665744157,1.14365609,63784.0,63783.0,0.0200564]
[1724665744353,1.30043509,63784.0,63783.0,0.000824]
[1724665744563,1.14365609,63784.0,63783.0,0.000824]
[1724665744764,0.00853009,63784.0,63783.0,0.34340201]
[1724665744979,0.00853009,63784.0,63783.0,1.04822351]
[1724665745765,0.00553009,63784.0,63783.0,1.04822351]
[1724665745939,0.00053009,63784.0,63783.0,1.04822351]
[1724665746169,0.00853009,63784.0,63783.0,1.04822351]
[1724665746522,0.00353009,63784.0,63783.0,0.57787951]
[1724665747538,0.00053009,63784.0,63783.0,0.73466051]
[1724665748091,0.00053009,63784.0,63783.0,0.73966051]
[1724665749251,0.00053009,63784.0,63783.0,0.58287951]
[1724665751024,0.00053009,63784.0,63783.0,0.58087951]
[1724665751238,0.00553009,63784.0,63783.0,0.57787951]
[1724665751527,0.00553009,63784.0,63783.0,1.04822351]
[1724665751859,0.00853009,63784.0,63783.0,1.04822351]
[1724665752092,0.00853009,63784.0,63783.0,0.57787951]
[1724665752303,0.00053009,63784.0,63783.0,0.57787951]
[1724665752478,0.00053009,63784.0,63783.0,0.58087951]
[1724665753852,0.00053009,63784.0,63783.0,0.57887951]
[1724665754053,0.00053009,63784.0,63783.0,0.58387951]
[1724665754453,0.0003414,63784.0,63783.0,0.58387951]
[1724665754675,0.0003414,63784.0,63783.0,0.58087951]
[1724665754924,0.0013414,63784.0,63783.0,0.4237015]
[1724665755185,0.4716784,63784.0,63783.0,0.0843015]
[1724665755386,0.4716784,63784.0,63783.0,0.003824]
[1724665755590,0.4716784,63784.0,63783.0,0.002824]
[1724665755790,0.7852364,63784.0,63783.0,0.003824]
[1724665755996,0.4716784,63784.0,63783.0,0.003824]
[1724665756481,0.4716784,63784.0,63783.0,0.0375764]
[1724665756633,0.1581204,63784.0,63783.0,0.0375764]
[1724665757039,0.6576784,63784.0,63783.0,0.0375764]
[1724665757266,0.6576784,63784.0,63783.0,0.002824]
[1724665757527,0.6576784,63784.0,63783.0,0.000824]
[1724665757688,0.6586784,63784.0,63783.0,0.000824]
[1724665758624,0.4726784,63784.0,63783.0,0.000824]
[1724665759001,0.0013414,63784.0,63783.0,0.182124]
[1724665759204,0.0013414,63784.0,63783.0,0.97895841]
[1724665759406,0.0013414,63784.0,63783.0,0.66539541]
[1724665760899,0.0003414,63784.0,63783.0,0.51161441]
[1724665761097,0.0003414,63784.0,63783.0,0.51361441]
[1724665761699,0.0013414,63784.0,63783.0,0.0240364]
[1724665762214,0.0013414,63784.0,63783.0,0.0210364]
[1724665762761,0.0013414,63784.0,63783.0,0.0200364]
[1724665764125,0.0013414,63784.0,63783.0,0.0190364]
[1724665764326,0.0013414,63784.0,63783.0,0.0200364]
[1724665765467,0.3480204,63784.0,63783.0,0.0200364]
[1724665765672,0.3480204,63784.0,63783.0,0.001824]
[1724665766456,0.1912414,63784.0,63783.0,0.001824]
[1724665767059,0.23819196,63784.0,63783.0,0.000824]
[1724665767265,0.2401956,63784.0,63783.0,0.000824]
[1724665767415,0.24419888,63784.0,63783.0,0.000824]
[1724665767595,0.0073414,63784.0,63783.0,0.000824]
[1724665768020,0.21107904,63784.0,63783.0,0.000824]
[1724665768218,0.23554624,63784.0,63783.0,0.000824]
[1724665768827,0.1651204,63784.0,63783.0,0.000824]
[1724665769024,0.23556457,63784.0,63783.0,0.000824]
[1724665769228,0.23256457,63784.0,63783.0,0.000824]
[1724665769492,0.3068204,63784.0,63783.0,0.000824]
[1724665769819,1.16539005,63784.0,63783.0,0.000824]
[1724665770042,1.07148892,63784.0,63783.0,0.000824]
[1724665770246,1.69860492,63784.0,63783.0,0.000824]
[1724665770747,1.70060492,63784.0,63783.0,0.000824]
[1724665771581,2.83473092,63784.0,63783.0,0.000824]
[1724665773754,2.20761492,63784.0,63783.0,0.000824]
[1724665773976,1.56265692,63784.0,63783.0,0.000824]
[1724665774371,1.65661649,63784.0,63783.0,0.000824]
[1724665774591,2.28373249,63784.0,63783.0,0.000824]
[1724665774791,2.30722382,63784.0,63783.0,0.000824]
[1724665775002,2.30722468,63784.0,63783.0,0.000824]
[1724665775138,2.18977292,63784.0,63783.0,0.000824]
[1724665777229,2.3072365,63784.0,63783.0,0.000824]
[1724665777674,1.1731105,63784.0,63783.0,0.000824]
[1724665778714,1.05564692,63784.0,63783.0,0.000824]
[1724665778887,1.17311245,63784.0,63783.0,0.000824]
[1724665779095,1.05564692,63784.0,63783.0,0.000824]
[1724665779299,1.17311296,63784.0,63783.0,0.000824]
[1724665780540,1.17178434,63784.0,63783.0,0.000824]
[1724665782064,1.05431998,63784.0,63783.0,0.000824]
[1724665782646,1.70067798,63784.0,63783.0,0.000824]
[1724665783731,2.83480398,63784.0,63783.0,0.000824]
[1724665785406,2.83466558,63784.0,63783.0,0.000824]
[1724665786569,2.83421188,63784.0,63783.0,0.000824]
[1724665786792,2.52065388,63784.0,63783.0,0.000824]
[1724665786968,1.87429588,63784.0,63783.0,0.000824]
[1724665787175,1.87429588,63784.0,63783.0,0.0160164]
[1724665787396,1.96828588,63784.0,63783.0,0.0160164]
[1724665787941,1.65472788,63784.0,63783.0,0.0160164]
[1724665788118,1.56340582,63784.0,63783.0,0.0160164]
[1724665788313,1.2982464,63784.0,63783.0,0.0160164]
[1724665789034,1.65717333,63784.0,63783.0,0.0160164]
[1724665789584,0.52304733,63784.0,63783.0,0.0160164]
[1724665790808,0.42905733,63784.0,63783.0,0.0160164]
[1724665791177,0.1641204,63784.0,63783.0,0.0160164]
[1724665791506,0.2581104,63784.0,63783.0,0.0160164]
[1724665791709,0.42915342,63784.0,63783.0,0.0160164]
[1724665792489,0.54664703,63784.0,63783.0,0.0160164]
[1724665792694,0.60515342,63784.0,63783.0,0.0160164]
[1724665792904,0.44837442,63784.0,63783.0,0.000824]
[1724665793112,0.27237442,63784.0,63783.0,0.000824]
[1724665793317,0.38989904,63784.0,63783.0,0.000824]
[1724665793818,0.54667804,63784.0,63783.0,0.000824]
[1724665794015,0.52317496,63784.0,63783.0,0.000824]
[1724665794219,0.52317463,63784.0,63783.0,0.000824]
[1724665794730,0.52345039,63784.0,63783.0,0.000824]
[1724665795083,0.07786128,63784.0,63783.0,0.189824]
[1724665795282,0.07786128,63784.0,63783.0,0.3495064]
[1724665795690,0.0073414,63784.0,63783.0,0.3495064]
[1724665797259,0.0778629,63784.0,63783.0,0.3495064]
[1724665797465,0.0073414,63784.0,63783.0,0.3495064]
[1724665797804,0.27309501,63784.0,63783.0,0.3495064]
[1724665798247,0.0073414,63784.0,63783.0,0.3495064]
[1724665798448,0.27345274,63784.0,63783.0,0.3495064]
[1724665798562,0.0073414,63784.0,63783.0,0.3495064]
[1724665798763,0.07786759,63784.0,63783.0,0.3495064]
[1724665798991,0.27386312,63784.0,63783.0,0.3495064]
[1724665799192,0.07786781,63784.0,63783.0,0.2088064]
[1724665801010,0.4310738,63784.0,63783.0,0.000824]
[1724665801216,0.36832019,63784.0,63783.0,0.000824]
[1724665801676,0.2742948,63784.0,63783.0,0.000824]
[1724665801878,0.0073414,63784.0,63783.0,0.000824]
[1724665802082,0.07787074,63784.0,63783.0,0.000824]
[1724665802282,0.07787074,63784.0,63783.0,0.0336964]
[1724665802435,0.0073414,63784.0,63783.0,0.0336964]
[1724665802634,0.07787069,63784.0,63783.0,0.0336964]
[1724665802841,0.0073414,63784.0,63783.0,0.0336964]
[1724665803040,0.07786995,63784.0,63783.0,0.0336964]
[1724665803623,0.05436107,63784.0,63783.0,0.0336964]
[1724665803832,0.05436122,63784.0,63783.0,0.0336964]
[1724665804071,0.05336122,63784.0,63783.0,0.0336964]
[1724665804306,0.05336122,63784.0,63783.0,1.28948141]
[1724665804307,0.0063414,63784.0,63783.0,1.28948141]
[1724665804929,0.0063414,63784.0,63783.0,0.97591841]
[1724665805133,0.0043414,63784.0,63783.0,0.97591841]
[1724665805555,0.0043414,63784.0,63783.0,1.60304441]
[1724665805758,0.0043414,63784.0,63783.0,1.62604441]
[1724665805963,0.0003414,63784.0,63783.0,1.63547389]
[1724665806134,0.0003414,63784.0,63783.0,1.95203689]
[1724665806337,0.0003414,63784.0,63783.0,1.95403689]
[1724665806550,0.00907501,63791.0,63783.0,1.95403689]
[1724665806551,0.00907501,63791.0,63790.0,1.610876]
[1724665806809,0.00907501,63791.0,63790.0,2.95078011]
[1724665807144,0.00907501,63791.0,63790.0,2.90384743]
[1724665807677,0.00907501,63791.0,63790.0,2.95073385]
[1724665807871,0.00907501,63791.0,63790.0,2.90384743]
[1724665808676,0.01007501,63791.0,63790.0,2.13185769]
[1724665809839,0.01007501,63791.0,63790.0,0.65700969]
[1724665809958,0.01107501,63791.0,63790.0,0.66500969]
[1724665810164,0.01107501,63791.0,63790.0,0.51870969]
[1724665810361,0.01107501,63791.0,63790.0,0.17817801]
[1724665810562,0.01207501,63791.0,63790.0,0.022]
[1724665810766,0.01207501,63791.0,63790.0,0.014]
[1724665810767,0.01107501,63791.0,63790.0,0.014]
[1724665811205,0.01207501,63791.0,63790.0,0.022]
[1724665811906,0.01107501,63791.0,63790.0,0.33494201]
[1724665812114,0.01107501,63791.0,63790.0,0.87267772]
[1724665812317,0.01107501,63791.0,63790.0,0.55914972]
[1724665812516,0.01107501,63791.0,63790.0,0.39438572]
[1724665812517,0.01007501,63791.0,63790.0,0.39438572]
[1724665812890,0.01107501,63791.0,63790.0,0.55914972]
[1724665813092,0.01007501,63791.0,63790.0,0.54514972]
[1724665813418,0.01107501,63791.0,63790.0,0.55814972]
[1724665813986,0.01107501,63791.0,63790.0,0.04180771]
[1724665814186,0.01207501,63791.0,63790.0,0.05280771]
[1724665817975,0.81605901,63791.0,63790.0,0.019]
[1724665818218,1.12958201,63791.0,63790.0,0.019]
[1724665818560,0.81605901,63791.0,63790.0,0.019]
[1724665818945,0.81505901,63791.0,63790.0,0.008]
[1724665819197,0.156767,63789.0,63783.0,0.000824]
[1724665819419,0.156767,63789.0,63784.0,0.15617801]
[1724665819420,0.001,63789.0,63784.0,0.15617801]
[1724665819624,0.001,63789.0,63785.0,0.156775]
[1724665819819,0.001,63789.0,63786.0,0.15617801]
[1724665820022,0.02207501,63791.0,63787.0,0.15677]
[1724665820221,0.02207501,63791.0,63788.0,0.08337207]
[1724665820430,0.01207501,63791.0,63789.0,0.15617801]
[1724665820631,0.00907501,63791.0,63789.0,0.31294301]
[1724665821086,0.00907501,63791.0,63789.0,0.15617801]
[1724665821431,0.00907501,63791.0,63789.0,0.31294401]
[1724665821630,0.00907501,63791.0,63790.0,0.07098681]
[1724665821831,0.00907501,63791.0,63790.0,0.22716482]
[1724665822071,0.00907501,63791.0,63790.0,0.38392882]
[1724665823602,0.00907501,63791.0,63790.0,0.22716482]
[1724665823807,0.00907501,63791.0,63790.0,0.23016482]
[1724665824195,0.00907501,63791.0,63790.0,0.23116482]
[1724665824720,0.00907501,63791.0,63790.0,0.38792882]
[1724665825272,0.00907501,63791.0,63790.0,0.56672882]
[1724665825949,0.00907501,63791.0,63790.0,0.56272882]
[1724665826128,0.00907501,63791.0,63790.0,0.56672882]
[1724665826337,0.00907501,63791.0,63790.0,0.56872882]
[1724665827814,0.00907501,63791.0,63790.0,0.88225682]
[1724665828218,0.00907501,63791.0,63790.0,0.56872882]
[1724665828834,0.00907501,63791.0,63790.0,0.88225682]
[1724665829035,0.00907501,63791.0,63790.0,1.19578482]
[1724665830541,0.00907501,63791.0,63790.0,1.50931282]
[1724665830741,0.00907501,63791.0,63790.0,1.67751282]
[1724665832674,0.00907501,63791.0,63790.0,1.67151282]
[1724665832834,0.01007501,63791.0,63790.0,1.68051282]
[1724665833039,0.01107501,63791.0,63790.0,1.69451282]
[1724665833443,0.01007501,63791.0,63790.0,1.68051282]
[1724665833853,0.01107501,63791.0,63790.0,1.70627277]
[1724665834111,0.01107501,63791.0,63790.0,1.69451282]
[1724665835150,0.01007501,63791.0,63790.0,1.68051282]
[1724665835764,0.01107501,63791.0,63790.0,1.70627338]
[1724665836368,0.01107501,63791.0,63790.0,1.69451282]
[1724665836987,0.01107501,63791.0,63790.0,1.70627306]
[1724665839668,0.01107501,63791.0,63790.0,1.69451282]
[1724665839873,0.01107501,63791.0,63790.0,1.70627193]
[1724665841598,0.01007501,63791.0,63790.0,1.69727193]
[1724665842012,0.00907501,63791.0,63790.0,1.69727193]
[1724665842196,0.00907501,63791.0,63790.0,1.71127193]
[1724665842656,0.00907501,63791.0,63790.0,1.68327193]
[1724665843082,0.00907501,63791.0,63790.0,1.71127193]
[1724665844171,0.00907501,63791.0,63790.0,1.82005397]
[1724665844306,0.00907501,63791.0,63790.0,2.13358197]
[1724665844909,0.00907501,63791.0,63790.0,2.11958197]
[1724665845119,0.00907501,63791.0,63790.0,2.13358197]
[1724665845363,0.00907501,63791.0,63790.0,2.11958197]
[1724665845540,0.00907501,63791.0,63790.0,2.13358197]
[1724665846120,0.00907501,63791.0,63790.0,2.13357968]
[1724665847153,0.00907501,63791.0,63790.0,1.82005168]
[1724665847856,0.00907501,63791.0,63790.0,2.13357968]
[1724665848059,0.00907501,63791.0,63790.0,2.60386968]
[1724665849995,0.00907501,63791.0,63790.0,2.60386987]
[1724665852665,0.00907501,63791.0,63790.0,2.18155983]
[1724665852876,0.00907501,63791.0,63790.0,2.27858486]
[1724665853087,0.00907501,63791.0,63790.0,2.29034262]
[1724665853795,0.00907501,63791.0,63790.0,1.96634262]
[1724665855405,0.00907501,63791.0,63790.0,2.29714262]
[1724665856345,0.00907501,63791.0,63790.0,2.28538486]
[1724665856544,0.00907501,63791.0,63790.0,2.29714211]
[1724665860932,0.00907501,63791.0,63790.0,1.96634211]
[1724665861410,0.00907501,63791.0,63790.0,1.85756007]
[1724665861610,0.00907501,63791.0,63790.0,1.96634211]
[1724665862132,0.00907501,63791.0,63790.0,1.96634409]
[1724665862734,0.00907501,63791.0,63790.0,2.29764409]
[1724665864763,0.00907501,63791.0,63790.0,2.61117209]
[1724665865364,0.00907501,63791.0,63790.0,2.18886205]
[1724665865563,0.00907501,63791.0,63790.0,2.29764409]
[1724665867348,0.00907501,63791.0,63790.0,2.61117209]
[1724665867552,0.00907501,63791.0,63790.0,2.29764409]
[1724665867970,0.00907501,63791.0,63790.0,2.61117209]
[1724665868379,0.00907501,63791.0,63790.0,2.61116651]
[1724665869611,0.00907501,63791.0,63790.0,2.65806095]
[1724665871279,0.00907501,63791.0,63790.0,2.03825647]
[1724665871399,0.00907501,63791.0,63790.0,1.96633851]
[1724665873010,0.00907501,63791.0,63790.0,1.83455647]
[1724665873142,0.00907501,63791.0,63790.0,1.94333851]
[1724665874411,0.00907501,63791.0,63790.0,1.96633851]
[1724665874559,0.00907501,63791.0,63790.0,1.95458486]
[1724665874760,0.00907501,63791.0,63790.0,2.27986991]
[1724665874976,0.00907501,63791.0,63790.0,1.96634191]
[1724665875177,0.00907501,63791.0,63790.0,2.14464191]
[1724665875686,0.00907501,63791.0,63790.0,2.21498357]
[1724665876112,0.00907501,63791.0,63790.0,2.11763264]
[1724665876567,0.00907501,63791.0,63790.0,2.43116064]
[1724665876899,0.00907501,63791.0,63790.0,2.52494952]
[1724665877709,0.00907501,63791.0,63790.0,2.52447819]
[1724665877925,0.00907501,63791.0,63790.0,2.4305129]
[1724665878523,0.00907501,63791.0,63790.0,2.52445256]
[1724665878738,0.00907501,63791.0,63790.0,3.43553451]
[1724665878936,0.00907501,63791.0,63790.0,3.38049244]
[1724665879520,0.00907501,63791.0,63790.0,3.28369244]
[1724665880175,0.00907501,63791.0,63790.0,3.59722044]
[1724665880380,0.00907501,63791.0,63790.0,3.28369244]
[1724665880633,0.00907501,63791.0,63790.0,2.5778129]
[1724665880841,0.00907501,63791.0,63790.0,2.65998444]
[1724665881044,0.00907501,63791.0,63790.0,2.57780933]
[1724665885225,0.00907501,63791.0,63790.0,2.74300933]
[1724665887014,0.00907501,63791.0,63790.0,2.65013082]
[1724665887221,0.00907501,63791.0,63790.0,2.74311851]
[1724665889585,0.00907501,63791.0,63790.0,3.48636651]
[1724665889741,0.00907501,63791.0,63790.0,3.64092953]
[1724665889942,0.00907501,63791.0,63790.0,2.78024917]
[1724665894546,0.00907501,63791.0,63790.0,3.28221417]
[1724665895200,0.00907501,63792.0,63791.0,1.410853]
[1724665895201,0.00760337,63792.0,63791.0,1.410853]
[1724665895497,0.00760337,63792.0,63791.0,3.31326844]
[1724665896348,0.00760337,63792.0,63791.0,3.40720947]
[1724665896541,0.00760337,63792.0,63791.0,3.40555704]
[1724665897822,0.00760337,63792.0,63791.0,3.41955704]
[1724665898198,0.00760337,63792.0,63791.0,3.5283056]
[1724665898399,0.00760337,63792.0,63791.0,3.44837082]
[1724665899090,0.34170751,63805.0,63799.0,0.2]
[1724665899265,0.00090751,63805.0,63804.0,1.67549157]
[1724665899482,0.00090751,63805.0,63804.0,2.15743651]
[1724665899704,0.00090751,63805.0,63804.0,2.18043651]
[1724665900067,0.00090751,63805.0,63804.0,2.22738482]
[1724665900258,0.00090751,63805.0,63804.0,2.26380858]
[1724665900661,0.00090751,63805.0,63804.0,2.95289585]
[1724665900873,0.00090751,63805.0,63804.0,3.10772872]
[1724665901077,0.00090751,63805.0,63804.0,3.03730626]
[1724665901278,0.00090751,63805.0,63804.0,2.96189585]
[1724665901481,0.00090751,63805.0,63804.0,3.04515885]
[1724665901683,0.00090751,63805.0,63804.0,3.10648519]
[1724665901883,0.00090751,63805.0,63804.0,3.04970672]
[1724665902088,0.00090751,63805.0,63804.0,3.06370672]
[1724665902294,0.00090751,63805.0,63804.0,3.04970672]
[1724665902610,0.00090751,63805.0,63804.0,3.06370672]
[1724665903004,0.00090751,63805.0,63804.0,3.11025515]
[1724665903222,0.00090751,63805.0,63804.0,3.09850021]
[1724665903379,0.00090751,63805.0,63804.0,3.0977244]
[1724665904372,0.00090751,63805.0,63804.0,3.02743237]
[1724665904645,0.00090751,63805.0,63804.0,3.99115489]
[1724665905135,0.00090751,63805.0,63804.0,4.08606286]
[1724665905372,0.00090751,63805.0,63804.0,4.23346329]
[1724665905577,0.00090751,63805.0,63804.0,4.38626329]
[1724665905749,0.00090751,63805.0,63804.0,4.5080851]
[1724665905979,0.00090751,63805.0,63804.0,3.6967051]
[1724665906196,0.00090751,63805.0,63804.0,4.13524525]
[1724665906431,0.00090751,63805.0,63804.0,3.02743237]
[1724665906650,0.00090751,63805.0,63804.0,3.02743456]
[1724665907073,0.00090751,63805.0,63804.0,2.71397556]
[1724665909336,0.00090751,63805.0,63804.0,2.89297556]
[1724665909547,0.00090751,63805.0,63804.0,2.71397556]
[1724665912737,0.00090751,63805.0,63804.0,3.01568934]
[1724665913065,0.00090751,63805.0,63804.0,2.88937355]
[1724665913270,0.00090751,63805.0,63804.0,2.71397355]
[1724665913405,0.00090751,63805.0,63804.0,3.02743255]
[1724665913603,0.00090751,63805.0,63804.0,2.71397355]
[1724665915915,0.00090751,63805.0,63804.0,2.70223034]
[1724665916122,0.00090751,63805.0,63804.0,2.71397595]
[1724665917691,0.00090751,63805.0,63804.0,3.36109095]
[1724665918609,0.31880751,63805.0,63804.0,2.23163773]
[1724665918809,0.31880751,63805.0,63804.0,2.02692729]
[1724665919032,0.31880751,63805.0,63804.0,2.01518168]
[1724665919234,0.31880751,63805.0,63804.0,2.32864068]
[1724665919431,0.31880751,63805.0,63804.0,2.31464068]
[1724665919632,0.31880751,63805.0,63804.0,2.31238892]
[1724665919869,0.31880751,63805.0,63804.0,2.31464068]
[1724665920079,0.31880751,63805.0,63804.0,2.36338897]
[1724665920550,0.31880751,63805.0,63804.0,2.34938897]
[1724665920911,0.31880751,63805.0,63804.0,2.36338897]
[1724665921092,0.31880751,63805.0,63804.0,2.34938897]
[1724665921286,0.31880751,63805.0,63804.0,2.36338897]
[1724665921616,0.31880751,63805.0,63804.0,2.34938807]
[1724665921992,0.14310751,63805.0,63804.0,2.36338807]
[1724665922194,0.00090751,63805.0,63804.0,2.39993575]
[1724665922483,0.00090751,63805.0,63804.0,2.71339475]
[1724665922895,0.00090751,63805.0,63804.0,3.03819475]
[1724665923884,0.00090751,63805.0,63804.0,3.08499791]
[1724665924235,0.00090751,63805.0,63804.0,3.39845648]
[1724665924597,0.00907501,63813.0,63812.0,1.61039]
[1724665924802,0.02010109,63813.0,63812.0,2.43943338]
[1724665924973,0.00907501,63813.0,63812.0,2.75285338]
[1724665925427,0.00907501,63813.0,63812.0,2.64410482]
[1724665925600,0.00907501,63813.0,63812.0,2.75285338]
[1724665926590,0.00907501,63813.0,63812.0,2.89225338]
[1724665927225,0.00907501,63813.0,63812.0,2.91569152]
[1724665927838,0.00907501,63813.0,63812.0,2.92969152]
[1724665930539,0.00907501,63813.0,63812.0,2.9662392]
[1724665933319,0.1422,63820.0,63818.0,1.20561656]
[1724665933321,0.1,63831.0,63818.0,1.20561656]
[1724665933585,0.1493,63824.0,63818.0,2.72657031]
[1724665934960,0.1493,63824.0,63818.0,2.76311799]
[1724665935377,0.1493,63824.0,63818.0,2.72657031]
[1724665935831,0.1493,63824.0,63818.0,2.74057031]
[1724665936009,0.1493,63824.0,63818.0,2.55837031]
[1724665936211,0.1493,63824.0,63818.0,2.57237031]
[1724665936344,0.1493,63824.0,63818.0,2.60891799]
[1724665939564,0.1493,63824.0,63818.0,2.92230899]
[1724665939949,0.1493,63824.0,63818.0,2.60891799]
[1724665940297,0.1493,63824.0,63818.0,2.59491799]
[1724665940528,0.1493,63824.0,63818.0,2.60891799]
[1724665940910,0.1493,63824.0,63818.0,2.59491799]
[1724665941712,0.1493,63824.0,63818.0,2.58091799]
[1724665941925,0.1493,63824.0,63818.0,2.59491799]
[1724665942326,0.1493,63824.0,63818.0,2.55837031]
[1724665942569,0.1493,63824.0,63818.0,2.57237031]
[1724665942785,0.1493,63824.0,63818.0,2.55837031]
[1724665943251,0.1794,63822.0,63818.0,2.57237031]
[1724665943968,0.1794,63822.0,63818.0,2.60891799]
[1724665945192,0.1493,63824.0,63818.0,2.60891799]
[1724665945472,0.1493,63824.0,63818.0,2.78711799]
[1724665945686,0.00130751,63819.0,63818.0,2.78711799]
[1724665946090,0.00130751,63819.0,63818.0,3.1472871]
[1724665947044,0.00130751,63819.0,63818.0,3.2100261]
[1724665950519,0.00130751,63819.0,63818.0,3.16324799]
[1724665951511,0.00130751,63819.0,63818.0,2.98504799]
[1724665951728,0.00130751,63819.0,63818.0,2.67165699]
[1724665952133,0.00130751,63819.0,63818.0,2.98504799]
[1724665952573,0.00130751,63819.0,63818.0,2.44062175]
[1724665952786,0.19040751,63819.0,63818.0,2.54937031]
[1724665953636,0.19040751,63819.0,63818.0,2.53537031]
[1724665953839,0.19040751,63819.0,63818.0,2.54437031]
[1724665954164,0.33670751,63819.0,63818.0,2.55837031]
[1724665954538,0.33670751,63819.0,63818.0,2.11323075]
[1724665954749,0.33670751,63819.0,63818.0,0.81855775]
[1724665954953,0.33770751,63819.0,63818.0,0.48409]
[1724665955309,0.5059242,63819.0,63818.0,0.48409]
[1724665955544,0.5059242,63819.0,63818.0,0.47009]
[1724665955545,0.3492312,63819.0,63818.0,0.47009]
[1724665955748,0.3492312,63819.0,63818.0,0.49809]
[1724665955954,0.3492312,63819.0,63818.0,0.5496519]
[1724665956368,0.3492312,63819.0,63818.0,0.5436519]
[1724665956574,0.3502312,63819.0,63818.0,0.84852491]
[1724665956795,0.3512312,63819.0,63818.0,0.84852491]
[1724665956995,0.3512312,63819.0,63818.0,0.5356519]
[1724665957195,0.3492312,63819.0,63818.0,0.5356519]
[1724665957605,0.3512312,63819.0,63818.0,0.5366519]
[1724665958873,0.3492312,63819.0,63818.0,0.5356519]
[1724665959516,0.3492312,63819.0,63818.0,1.47530691]
[1724665959974,0.33770751,63819.0,63818.0,1.47530691]
[1724665960176,0.33670751,63819.0,63818.0,1.47530691]
[1724665960550,0.33770751,63819.0,63818.0,1.47530691]
[1724665960772,0.33670751,63819.0,63818.0,1.47530691]
[1724665960922,0.33670751,63819.0,63818.0,1.47730691]
[1724665962135,0.33670751,63819.0,63818.0,1.47623323]
[1724665962339,0.33651891,63819.0,63818.0,1.48023323]
[1724665962586,0.33651891,63819.0,63818.0,1.16684223]
[1724665963031,0.34794438,63819.0,63818.0,1.16684223]
[1724665963684,0.34894438,63819.0,63818.0,0.54057822]
[1724665964673,0.34894438,63819.0,63818.0,0.53857822]
[1724665965235,0.34894438,63819.0,63818.0,0.53457822]
[1724665965440,0.34894438,63819.0,63818.0,0.69127322]
[1724665965701,0.34894438,63819.0,63818.0,0.69427322]
[1724665966056,0.34894438,63819.0,63818.0,0.69127322]
[1724665966477,0.34894438,63819.0,63818.0,1.00566422]
[1724665966707,0.34894438,63819.0,63818.0,0.69227322]
[1724665966919,0.34894438,63819.0,63818.0,1.47523323]
[1724665967331,0.34894438,63819.0,63818.0,1.47423323]
[1724665967332,0.33751891,63819.0,63818.0,1.47423323]
[1724665969618,0.33651891,63819.0,63818.0,1.47423323]
[1724665971919,0.33651891,63819.0,63818.0,1.78762423]
[1724665972897,0.33651891,63819.0,63818.0,1.81062423]
[1724665972898,0.14741891,63819.0,63818.0,1.81062423]
[1724665973883,0.00111891,63819.0,63818.0,1.81062423]
[1724665974655,0.00111891,63819.0,63818.0,0.86112632]
[1724665974946,0.01248803,63819.0,63818.0,1.33121232]
[1724665975096,0.00111891,63819.0,63818.0,1.80129232]
[1724665982335,0.33641891,63819.0,63818.0,0.47008]
[1724665982541,0.33641891,63819.0,63818.0,0.626775]
[1724665982756,0.34784355,63819.0,63818.0,1.253557]
[1724665982954,0.34784355,63819.0,63818.0,1.36230556]
[1724665983336,0.33641891,63819.0,63818.0,1.36230556]
[1724665983698,0.34783472,63819.0,63818.0,1.83187457]
[1724665983898,0.00111891,63819.0,63818.0,1.85487457]
[1724665985283,0.00111891,63819.0,63818.0,1.85887457]
[1724665986319,0.00111891,63819.0,63818.0,1.86087457]
[1724665987692,0.19151891,63819.0,63818.0,1.86087457]
[1724665989794,0.19151891,63819.0,63818.0,1.54748357]
[1724665990008,0.34281891,63819.0,63818.0,0.632775]
[1724665990415,0.35423925,63819.0,63818.0,0.946166]
[1724665991242,0.35523925,63819.0,63818.0,0.632775]
[1724665991453,0.35523925,63819.0,63818.0,0.47608]
[1724665991679,0.51193225,63819.0,63818.0,0.47608]
[1724665991878,0.35523925,63819.0,63818.0,0.47608]
[1724665993151,0.35523925,63819.0,63818.0,0.47208]
[1724665993369,0.35523925,63819.0,63818.0,0.472905]
[1724665993618,0.35523925,63819.0,63818.0,0.5369484]
[1724665993863,0.34381891,63819.0,63818.0,0.6946434]
[1724665994099,0.35523925,63819.0,63818.0,0.5379484]
[1724665994341,0.35423925,63819.0,63818.0,0.96008796]
[1724665994578,0.35423925,63819.0,63818.0,1.58635197]
[1724665994997,0.34281891,63819.0,63818.0,1.58635197]
[1724665996726,0.15241891,63819.0,63818.0,1.89974297]
[1724665996929,0.00111891,63819.0,63818.0,1.89974297]
[1724665997364,0.00111891,63819.0,63818.0,1.92274297]
[1724665999931,0.00111891,63819.0,63818.0,1.89974297]
[1724666001313,0.00111891,63819.0,63818.0,1.91099409]
[1724666001528,0.00111891,63819.0,63818.0,1.89925002]
[1724666004284,0.00111891,63819.0,63818.0,1.92225002]
[1724666004627,0.00111891,63819.0,63818.0,1.933993]
[1724666005251,0.00111891,63819.0,63818.0,1.92225002]
[1724666005443,0.00111891,63819.0,63818.0,2.41448228]
[1724666006397,0.00111891,63819.0,63818.0,2.41148228]
[1724666006592,0.00111891,63819.0,63818.0,2.41548228]
[1724666007020,0.00111891,63819.0,63818.0,2.54678228]
[1724666007567,0.00111891,63819.0,63818.0,2.56078228]
[1724666007968,0.00111891,63819.0,63818.0,2.57278228]
[1724666008472,0.00111891,63819.0,63818.0,2.56104102]
[1724666008661,0.00111891,63819.0,63818.0,2.54904102]
[1724666008827,0.00111891,63819.0,63818.0,2.5467821]
[1724666009038,0.00111891,63819.0,63818.0,2.5607821]
[1724666009397,0.00111891,63819.0,63818.0,2.5747821]
[1724666009964,0.00111891,63819.0,63818.0,2.8881731]
[1724666010389,0.00111891,63819.0,63818.0,2.8741731]
[1724666010712,0.00111891,63819.0,63818.0,2.91029446]
[1724666010887,0.00111891,63819.0,63818.0,2.9710997]
[1724666011306,0.00111891,63819.0,63818.0,2.95712078]
[1724666011520,0.00111891,63819.0,63818.0,2.91029446]
[1724666011752,0.00111891,63819.0,63818.0,2.92429446]
[1724666011952,0.00111891,63819.0,63818.0,2.92428942]
[1724666012153,0.00111891,63819.0,63818.0,2.98049728]
[1724666012282,0.00111891,63819.0,63818.0,2.92428942]
[1724666012899,0.00111891,63819.0,63818.0,2.97110225]
[1724666013103,0.00111891,63819.0,63818.0,2.82159167]
[1724666013305,0.00111891,63819.0,63818.0,2.77477706]
[1724666015026,0.00111891,63819.0,63818.0,2.76304102]
[1724666015252,0.00111891,63819.0,63818.0,2.77477832]
[1724666015982,0.00111891,63819.0,63818.0,2.43847832]
[1724666016153,0.00111891,63819.0,63818.0,2.32972976]
[1724666016607,0.00093032,63819.0,63818.0,2.32972976]
[1724666016796,0.00093032,63819.0,63818.0,1.82623876]
[1724666016992,0.00093032,63819.0,63818.0,1.18771946]
[1724666017243,0.14803032,63819.0,63818.0,0.87432846]
[1724666017447,0.33807586,63819.0,63818.0,0.87432846]
[1724666017646,0.32583032,63819.0,63818.0,1.18771946]